Workbook

Sheet 报价汇总
A1: 施维雅市场服务报价单
A4: 项目名称: | B4: Servier 2018-2019 RiSe Up | D4: 供应商名称: | F4: 伯乐仕（北京）国际商业策划有限公司
A5: 预计完成日期: | B5: 2018, Oct, 19th | D5: 供应商联系电话: | F5: 郭燕雷
A6: 项目地点： | B6: Xi'an | D6: 电子邮箱： | F6: 15811515220
A9: 序号 | B9: 服务类目 | D9: 预算小计 | E9: 结算小计 | F9: 说明
A10: 1 | B10: 创意设计 | D10: =Creative创意设计!H22 -> 11000 | E10: =Creative创意设计!L18 -> 11000
A11: 2 | B11: 搭建制作 | D11: =Event搭建制作!I48 -> 190509 | E11: =Event搭建制作!M48 -> 196350
A12: 3 | B12: Video视频 | D12: =Video视频!G21 -> 80550 | E12: =Video视频!K21 -> 80550
B13: 不含税总计 | D13: =SUM(D10:D12) -> 282059 | E13: =SUM(E10:E12) -> 287900
A15: 增值税金额小计(CNY): | D15: =D13*0.06 -> 16923.54 | E15: =E13*0.06 -> 17274 | F15: 施维雅只接受6%的增值税专用税,其他税费请含进单价中
A16: 含税总计(CNY): | C16: 含税总计(CNY) | D16: =D13+D15 -> 298982.54 | E16: =E13+E15 -> 305174
A18: 备注： | B18: 其他项费用总计： | D18: 47000 | F18: 施维雅采购部内部使用，请勿修改内部公式
A20: 说明:
A21: 1.此报价模板内有公式，各项服务小计都自动来自于各类目的明细表，请不要擅自修改；
A22: 2.此报价模板为报价单首页，报价时请在分项明细页填写分项合计需与首页一致；

Sheet Sheet1 (hidden)
A2: Creative | F2: Event&Production | K2: Video Production
A3: 求和项:总价 | F3: 求和项:总价 | K3: 行标签 | L3: 求和项:总价 Subtotal
A4: 大会环节 | B4: 类别 Category | C4: 汇总 | F4: 大会环节 | G4: 类别 | H4: 项目 Item | I4: 汇总 | K4: Opening video (plenary session)（大会开场视频） | L4: 0
A5: Closing ceremony | B5: 主形象设计 | C5: 0 | F5: Team Building | G5: 人员 | H5: 人员费用 | K5: Post-event video - Closing ceremony（闭幕式现场花絮视频） | L5: 0
A6: For all sessions | B6: 微信相关 | C6: 0 | F6: (空白) | G6: AV设备租赁 | H6: Camera（摄像器材） | I6: 0 | K6: Post-event video - Gala dinner（晚宴现场花絮视频） | L6: 0
A7: Gala dinner | B7: 主形象设计 | C7: 0 | H7: 灯光设备租赁 | I7: 0 | K7: Post-event video - Opening cermony（大会现场花絮剪辑视频） | L7: 0
A8: Plenary session | B8: 主形象设计 | C8: 0 | H8: 视频设备租赁 | I8: 0 | K8: Post-event video - Team building（拓展活动现场花絮视频） | L8: 0
A9: Team Building | B9: 主形象设计 | C9: 0 | H9: 音频设备租赁 | I9: 0 | K9: Top Sales Video（销售明星视频） | L9: 0
A10: (空白) | B10: 其他 | C10: 0 | G10: 差旅费用 | H10: 差旅费用 | I10: 0 | K10: Warm-up Video(大会暖场视频) | L10: 0
B11: 图片 | C11: 0 | G11: 搭建 | H11: 搭建 | I11: 0 | K11: 其他 | L11: 0
B12: 完稿 | C12: 0 | G12: 道具/礼品 | H12: 道具 | K12: 总计 | L12: 0
B13: 延展设计 | C13: 0 | H13: 礼品
A14: 总计 | C14: 0 | G14: 其他 | H14: 其他 | I14: 0
G15: 人员 | H15: 人员费用 | I15: 0
G16: 运输费用 | H16: 物料运输费用 | I16: 0
G17: 制作 | H17: KT板 | I17: 0
H18: X架 | I18: 0
H19: 横幅 | I19: 0
H20: 讲台前板 | I20: 0
H21: 热转印布拉网展架 | I21: 0
H22: 提示牌 | I22: 0
H23: 写真画面 | I23: 0
H24: 易拉宝 | I24: 0
F25: 总计 | I25: 0

Sheet Creative创意设计
A1: 施维雅报价明细-创意和设计
A4: Currency币种:CNY人民币
A5: 说明：
A6: * | B6: 施维雅只接受6%的增值税,其他税费请一律含进单价
A7: * | B7: 如有任何修改或添加行，请用红色字体显示
A8: * | B8: 请不要删除行
A9: * | B9: 所有单价都不含增值税
F11: 具体项目预算 Quotation | J11: 具体项目结算 Quotation
A12: 类别 Category | B12: 项目 Item | C12: 内容描述 Description | D12: 大会环节 | E12: 收费单位 Unit | F12: 单价 Unit Price | G12: 数量 Unit | H12: 总价 Subtotal | I12: 是否第三方费用 ?（Y/N) | J12: 结算单价 Unit Price | K12: 结算数量 Unit | L12: 结算总价 Subtotal | M12: 是否第三方费用 ?（Y/N) | N12: 人员职务 Profile | O12: Cost/ Day | P12: 人工天 days | Q12: 备注
A13: 主形象设计 | B13: KV | C13: 整体活动等形象的整体全新创意；特指从无到有 | D13: Rise up | E13: 个 | F13: 1000 | G13: 1 | H13: =F13*G13 -> 1000 | I13: N | J13: 1000 | K13: 1 | L13: =J13*K13 -> 1000 | M13: N
A14: 主形象设计 | B14: Slogan/Theme | C14: 整体活动等形象的整体全新创意；特指从无到有 | D14: Rise up | E14: 个 | F14: 0 | G14: 1 | H14: =F14*G14 -> 0 | I14: N | J14: 0 | K14: 1 | L14: =J14*K14 -> 0 | M14: N
A15: 主形象设计 | B15: 项目策划及文案撰写费 | C15: 整个项目活动策划创意、环节设计，包含活动流程设计及项目涉及到的所有文案类撰写 | D15: Rise up | E15: 个 | F15: 1000 | G15: 1 | H15: =F15*G15 -> 1000 | I15: N | J15: 1000 | K15: 1 | L15: =J15*K15 -> 1000 | M15: N
A16: 延展设计 | B16: 会场背景板设计 | C16: 与KV设计不同的情况下才另行收费 | D16: Rise up | E16: 个 | F16: 500 | G16: 8 | H16: =F16*G16 -> 4000 | I16: N | J16: 500 | K16: 8 | L16: =J16*K16 -> 4000 | M16: N | Q16: 5个治疗领域+1个仿制药背板+2个地理足迹
A17: 3D设计 | B17: Rise up展板设计 | C17: 整体设计 | D17: Rise up | E17: 套 | F17: 5000 | G17: 1 | H17: =F17*G17 -> 5000 | I17: N | J17: 5000 | K17: 1 | L17: =J17*K17 -> 5000 | M17: N
G18: 创意和设计部分总计(不含服务费和税费): | H18: =SUM(H13:H17) -> 11000 | K18: 创意和设计部分总计(不含服务费和税费): | L18: =SUM(L13:L17) -> 11000
G19: 其他项费用总计： | H19: 0 | K19: 其他项费用总计： | L19: 0
G20: 第三方费用小计 Total 3rd party cost: | H20: 0 | K20: 第三方费用小计 Total 3rd party cost: | L20: 0
A21: 服务费 Service Fee | C21: 市场营销公司垫付的零星第三方支出，需要收取在实际发生基础上收取服务费的部分。请注意需要付款时提供第三方发票作为支持文件。 | G21: 0.1 | H21: =H20*G21 -> 0 | K21: 0.1 | L21: =L20*K21 -> 0
G22: 不含税总计: | H22: =H21+H18 -> 11000 | K22: 不含税总计: | L22: =L21+L18 -> 11000
F23: 税金 Tax | G23: 0.06 | H23: =H22*0.06 -> 660 | J23: 税金 Tax | K23: 0.06 | L23: =L22*0.06 -> 660

Sheet Event搭建制作
A3: 施维雅报价明细-制作搭建
A6: Currency币种:CNY人民币
A7: 说明：
A8: * | B8: 施维雅只接受6%的增值税,其他税费请一律含进单价
A9: * | B9: 如有任何修改或添加行，请用红色字体显示
A10: * | B10: 请不要删除行
A11: * | B11: 所有单价都不含增值税
G13: 具体项目预算 Quotation | K13: 具体项目结算 Quotation
A14: 类别 | B14: 项目 Item | C14: 规格 Specification | D14: 内容描述 Description | E14: 大会环节 | F14: 收费单位 Unit | G14: 单价 Unit Price | H14: 数量 Unit | I14: 总价 Subtotal | J14: 是否第三方费用?（Y/N) | K14: 单价 Unit Price | L14: 数量 Unit | M14: 总价 Subtotal | N14: 是否第三方费用?（Y/N) | O14: 备注
A15: 搭建 | B15: 制作 | C15: PVC球 | D15: RiSe 4 All logo印制 | E15: Rise up | F15: 个 | K15: 300 | L15: 10 | M15: =K15*L15 -> 3000 | N15: Y | O15: 增加项 | AB15: Zone dinner
A16: 搭建 | B16: 搭建 | C16: LED侧屏幕地台 | D16: 1500mm*12000mm*2000mmh*2；打褶黑丝绒遮挡 | E16: Rise up | F16: 米 | G16: 300 | H16: 24 | I16: =G16*H16 -> 7200 | J16: Y | K16: 300 | L16: 0 | M16: 0 | N16: Y | O16: 费用调整到大会环节 | AB16: Zone dinner
A17: 搭建 | B17: 搭建 | C17: 发光吧凳 | D17: 租赁，方形发光吧凳 | E17: Rise up | F17: 个 | G17: 150 | H17: 80 | I17: =G17*H17 -> 12000 | J17: Y | K17: 150 | L17: 80 | M17: =K17*L17 -> 12000 | N17: Y
A18: 搭建 | B18: 搭建 | C18: 赋能热情的员工-液晶显示屏背板 | D18: 木质车贴，边框LED发光带，下口配钢板；1000mm*2300mm*5个；内嵌55寸液晶屏 | E18: Rise up | F18: 套 | G18: 3000 | H18: 5 | I18: =G18*H18 -> 15000 | J18: Y | K18: 5000 | L18: 1 | M18: 5000 | N18: Y | O18: 方案调整，5个背板取消更改2个背板（一个内嵌3个55寸液晶电视）
A19: 搭建 | B19: 搭建 | C19: 赋能热情的员工-绿幕拍照 | D19: 抠像程序-实时抠像功能程序功能 | E19: Rise up | F19: 个 | K19: 19417 | L19: 1 | M19: 19417 | N19: Y | O19: 增加项-绿幕拍照
A20: 搭建 | B20: 搭建 | C20: 赋能热情的员工-绿幕拍照 | D20: 摄像头+8进8出输入卡+按钮+补光灯 | E20: Rise up | F20: 套 | K20: 1942 | L20: 1 | M20: 1942 | N20: Y | O20: 增加项-绿幕拍照
A21: 搭建 | B21: 搭建 | C21: 赋能热情的员工-绿幕拍照 | D21: 分享及下载程序 | E21: Rise up | F21: 个 | K21: 4854 | L21: 1 | M21: 4854 | N21: Y | O21: 增加项-绿幕拍照
A22: 搭建 | B22: 搭建 | C22: 赋能热情的员工-绿幕拍照 | D22: 网络服务器 | E22: Rise up | F22: 个 | K22: 971 | L22: 1 | M22: 971 | N22: Y | O22: 增加项-绿幕拍照
A23: 搭建 | B23: 搭建 | C23: 遥控启动台 | D23: 木质油漆；500mm*300mm*900mmh | E23: Rise up | F23: 套 | G23: 1500 | H23: 1 | I23: =G23*H23 -> 1500 | J23: Y | K23: 1500 | L23: 1 | M23: 1500 | N23: Y
A24: 搭建 | B24: 搭建 | C24: 聚焦5个治疗领域-背板 | D24: 木质油漆+文字区域写真；24平米*5个 | E24: Rise up | F24: 平米 | G24: 300 | H24: 120 | I24: =H24*G24 -> 36000 | J24: Y | K24: 300 | L24: 120 | M24: =L24*K24 -> 36000 | N24: Y
A25: 搭建 | B25: 搭建 | C25: 背板立体字及暗光 | D25: 立体字及暗光 | E25: Rise up | F25: 套 | G25: 1000 | H25: 5 | I25: =H25*G25 -> 5000 | J25: Y | K25: 1000 | L25: 5 | M25: =L25*K25 -> 5000 | N25: Y
A26: 搭建 | B26: 搭建 | C26: 积极协同生产仿制药-背板 | D26: 木质车贴；3000mm*7000mmh | E26: Rise up | F26: 平米 | G26: 300 | H26: 21 | I26: 6300 | J26: Y | K26: 300 | L26: 21 | M26: 6300 | N26: Y
A27: 搭建 | B27: 搭建 | C27: 书架方盒 | D27: 木质油；四面及内外侧喷漆 | E27: Rise up | F27: 个 | G27: 180 | H27: 18 | I27: 3240 | J27: Y | K27: 180 | L27: 18 | M27: 3240 | N27: Y
A28: 搭建 | B28: 搭建 | C28: 书架立体字 | D28: 亚克力雕刻立体字 | E28: Rise up | F28: 套 | G28: 4000 | H28: 1 | I28: 4000 | J28: Y | K28: 4000 | L28: 1 | M28: 4000 | N28: Y
A29: 搭建 | B29: 搭建 | C29: 高绩效组织-钢丝网背墙 | D29: 钢丝网红色复古砖墙，12000mm*4000mmh | E29: Rise up | F29: 平米 | G29: 250 | H29: 48 | I29: 12000 | J29: Y | K29: 250 | L29: 48 | M29: 12000 | N29: Y
A30: 搭建 | B30: 搭建 | C30: 复古地台 | D30: 钢架龙骨面铺15大纤板2层 | E30: Rise up | F30: 平米 | G30: 300 | H30: 40 | I30: 12000 | J30: Y | K30: 300 | L30: 40 | M30: 12000 | N30: Y
A31: 搭建 | B31: 搭建 | C31: 装饰轮胎 | D31: 装饰轮胎+图案彩绘 | E31: Rise up | F31: 个 | G31: 120 | H31: 18 | I31: 2160 | J31: Y | K31: 120 | L31: 18 | M31: 2160 | N31: Y
A32: 搭建 | B32: 搭建 | C32: 互动道具 | D32: 摩托车游戏互动道具 | E32: Rise up | F32: 个 | G32: 3000 | H32: 2 | I32: =H32*G32 -> 6000 | J32: Y | K32: 3000 | L32: 2 | M32: 6000 | N32: Y
A33: 搭建 | B33: 搭建 | C33: 差异化地域覆盖-地图外壳 | D33: 木质油漆，暗光带 | E33: Rise up | F33: 米 | G33: 800 | H33: 16 | I33: 12800 | J33: Y | K33: 800 | L33: 16 | M33: 12800 | N33: Y
A34: 搭建 | B34: 搭建 | C34: 地图玻璃 | D34: 10MM钢化玻璃 | E34: Rise up | F34: 平米 | G34: 300 | H34: 14 | I34: 4200 | J34: Y | K34: 300 | L34: 14 | M34: 4200 | N34: Y
A35: 搭建 | B35: 搭建 | C35: 地图 | D35: 15PVC雕刻 | E35: Rise up | F35: 平米 | G35: 360 | H35: 14 | I35: 5040 | J35: Y | K35: 360 | L35: 14 | M35: 5040 | N35: Y
A36: 搭建 | B36: 搭建 | C36: 悬吊眉头 | D36: 木质油漆 | E36: Rise up | F36: 米 | G36: 500 | H36: 4 | I36: 2000 | J36: Y | K36: 500 | L36: 4 | M36: 2000 | N36: Y
A37: 搭建 | B37: 搭建 | C37: 悬吊眉头立体字及暗光 | D37: 3600mm*120mm*430mmh；立体字雕刻 | E37: Rise up | F37: 套 | G37: 2000 | H37: 1 | I37: 2000 | J37: Y | K37: 2000 | L37: 1 | M37: 2000 | N37: Y
A38: 搭建 | B38: 搭建 | C38: 亚克力背板 | D38: 10MM亚克力 | E38: Rise up | F38: 平米 | G38: 500 | H38: 7.5 | I38: 3750 | J38: Y | K38: 500 | L38: 0 | M38: 0 | N38: Y | O38: 搭建方案调整
A39: 搭建 | B39: 搭建 | C39: 背板雕刻PVC | D39: 地图PVC雕刻 | E39: Rise up | F39: 平米 | G39: 400 | H39: 7.5 | I39: 3000 | J39: Y | K39: 400 | L39: 0 | M39: 0 | N39: Y
A40: 搭建 | B40: 搭建 | C40: 灯箱 | D40: 发光灯箱+画面喷绘 | E40: Rise up | F40: 平米 | J40: Y | K40: 580 | L40: 7.2 | M40: =L40*K40 -> 4176 | N40: Y | O40: 调整方案后灯箱报价
A41: AV设备租赁 | B41: 视频设备租赁 | C41: LED大屏幕 | D41: Gloshine P3LED Display(5m*3m) | E41: Rise up | F41: 平米 | G41: 600 | H41: 15 | I41: =G41*H41 -> 9000 | J41: Y | K41: 600 | L41: 15 | M41: =K41*L41 -> 9000 | N41: Y
A42: AV设备租赁 | B42: 视频设备租赁 | C42: 液晶电视(55"，全高清) | D42: SHARP LCD-55 | E42: Rise up | F42: 台 | G42: 800 | H42: 5 | I42: =G42*H42 -> 4000 | J42: Y | K42: 800 | L42: 3 | M42: =K42*L42 -> 2400 | N42: Y | O42: 方案调整数量减少
A43: AV设备租赁 | B43: 视频设备租赁 | C43: Laptop 笔记本电脑 | D43: APPLE , MACBOOK | E43: Rise up | F43: 台 | G43: 500 | H43: 10 | I43: =G43*H43 -> 5000 | J43: Y | K43: 500 | L43: 3 | M43: =K43*L43 -> 1500 | N43: Y | O43: 方案调整数量减少
A44: 搭建制作总计(不含服务费和税费)： | I44: =SUM(I16:I43) -> 173190 | K44: 搭建制作总计(不含服务费和税费)： | M44: =SUM(M15:M43) -> 178500
A45: 其他项费用小计： | K45: 其他项费用小计：
A46: 第三方费用小计 Total 3rd party cost: | I46: =SUM(I16:I43) -> 173190 | K46: 第三方费用小计 Total 3rd party cost: | M46: =SUM(M15:M43) -> 178500
A47: 服务费 Service Fee | D47: 市场营销公司垫付的零星第三方支出，需要收取在实际发生基础上收取服务费的部分。请注意需要付款时提供第三方发票作为支持文件。 | H47: 0.1 | I47: =I46*H47 -> 17319 | K47: 服务费 Service Fee | L47: 0.1 | M47: =M46*L47 -> 17850
A48: 不含税总计: | I48: =I44+I47 -> 190509 | K48: 不含税总计: | M48: =M44+M47 -> 196350
A49: 税金 Tax | H49: 0.06 | I49: =I48*H49 -> 11430.54 | K49: 税金 Tax | L49: 0.06 | M49: =M48*L49 -> 11781

Sheet Video视频
A1: 施维雅报价明细-视频制作
A4: Currency币种:CNY人民币
A5: 说明：
A6: * | B6: 施维雅只接受6%的增值税,其他税费请一律含进单价
A7: * | B7: 如有任何修改或添加行，请用红色字体显示
A8: * | B8: 请不要删除行
A9: * | B9: 所有单价都不含增值税
E11: 具体项目预算 Quotation | I11: 具体项目结算 Quotation
A12: 视频名称 | B12: 项目 Item | C12: 内容描述 Description | D12: 收费单位 Unit | E12: 单价 Unit Price | F12: 数量 Unit | G12: 总价 Subtotal | H12: 是否第三方费用? （Y/N) | I12: 单价 Unit Price | J12: 数量 Unit | K12: 总价 Subtotal | L12: 是否第三方费用? （Y/N) | M12: 备注
A13: opening Video - RiSe 4 All | B13: 脚本大纲 | C13: 视频主线，大纲发展 | D13: 个/pc | E13: 3000 | F13: 1 | G13: =E13*F13 -> 3000 | H13: N | I13: 3000 | J13: 1 | K13: =I13*J13 -> 3000 | L13: N
A14: opening Video - RiSe 4 All | B14: 视频制作 | C14: 多媒体制作合成 | D14: 个/pc | E14: 60000 | F14: 1 | G14: 60000 | H14: Y | I14: 60000 | J14: 1 | K14: =I14*J14 -> 60000 | L14: Y
A15: Post-event video - rise up&plenary （rise up&plenary 花絮视频） | B15: 配乐 | C15: 为视频提供背景音乐(不包括版权音乐的版权费) | D15: 个/pc | E15: 500 | F15: 1 | G15: =E15*F15 -> 500 | H15: Y | I15: 500 | J15: 1 | K15: =I15*J15 -> 500 | L15: Y
A16: Post-event video - rise up&plenary （rise up&plenary 花絮视频） | B16: 后期加工及内容剪辑（连夜剪辑） | C16: 视频剪辑，指对母带进行剪辑，按工作时间收取 | D16: 小时/hour | E16: 1000 | F16: 10 | G16: =E16*F16 -> 10000 | H16: Y | I16: 1000 | J16: 10 | K16: =I16*J16 -> 10000 | L16: Y
A17: 视频总计(不含服务费和税费): | G17: =SUM(G13:G16) -> 73500 | I17: 视频总计(不含服务费和税费): | K17: =SUM(K13:K16) -> 73500
A18: 其他项费用小计： | G18: 0 | I18: 其他项费用小计： | K18: 0
A19: 第三方费用小计 Total 3rd party cost: | G19: =G14+G15+G16 -> 70500 | I19: 第三方费用小计 Total 3rd party cost: | K19: =K17-K13 -> 70500
B20: 服务费 Service Fee | C20: 市场营销公司垫付的零星第三方支出，需要收取在实际发生基础上收取服务费的部分。请注意需要付款时提供第三方发票作为支持文件。 | F20: 0.1 | G20: =G19*F20 -> 7050 | I20: 服务费 Service Fee | J20: 0.1 | K20: =K19*J20 -> 7050
A21: 不含税总计: | G21: =G17+G20 -> 80550 | I21: 不含税总计: | K21: =K17+K20 -> 80550
A22: 税金 Tax | F22: 0.06 | G22: =G21*F22 -> 4833 | I22: 税金 Tax | J22: 0.06 | K22: =K21*J22 -> 4833

Sheet Sheet3 (hidden)
B2: Plenary session | C2: Creative director
B3: Gala dinner | C3: Associate Creative Director
B4: Team Building | C4: Copywriter
B5: Closing ceremony | C5: 2D designer
B6: For all sessions | C6: Senior Project Manager
C7: Project Manager
C8: 3D designer
C9: Developer
C10: Technicals
